bitfinex/quotes_SOLUSD_20250421
["timestamp","ask_amount","ask_price","bid_price","bid_amount"]
[1745227038574,18.79181043,139.79,139.77,0.03]
[1745227040286,25.94547744,139.79,139.77,0.03]
[1745227040957,18.79181043,139.79,139.77,0.03]
[1745227042054,25.94565695,139.79,139.77,0.03]
[1745227042971,80.94216157,139.78,139.77,0.03]
[1745227045467,80.8,139.78,139.77,0.03]
[1745227045676,80.8,139.83,139.77,6.2684]
[1745227045981,0.14216157,139.81,139.77,6.2684]
[1745227046765,18.64964886,139.82,139.77,6.2684]
[1745227047191,0.14216157,139.81,139.77,6.2684]
[1745227048968,18.64964886,139.82,139.77,6.2684]
[1745227049284,0.14216157,139.81,139.77,6.2684]
[1745227058074,0.14216157,139.81,139.77,0.03]
[1745227058794,18.64964886,139.82,139.77,0.03]
[1745227058986,0.14216157,139.81,139.77,0.03]
[1745227060192,0.14216157,139.79,139.77,0.03]
[1745227061189,7.29626086,139.78,139.77,0.03]
[1745227061395,0.14216157,139.78,139.77,0.03]
[1745227061689,24.1054595,139.78,139.77,0.03]
[1745227062777,5.31364907,139.78,139.77,0.03]
[1745227063979,0.14216157,139.79,139.77,0.03]
[1745227065376,18.79181043,139.79,139.77,0.03]
[1745227066586,25.9454978,139.79,139.77,0.03]
[1745227068795,18.79181043,139.79,139.77,0.03]
[1745227069701,25.94545568,139.79,139.77,0.03]
[1745227075607,18.79181043,139.79,139.77,0.03]
[1745227081421,0.14216157,139.79,139.77,0.03]
[1745227084724,18.79181043,139.79,139.77,0.03]
[1745227088733,0.14216157,139.79,139.77,0.03]
[1745227092127,18.79181043,139.79,139.77,0.03]
[1745227094515,23.96922555,139.78,139.77,0.03]
[1745227095703,5.46173826,139.78,139.77,0.03]
[1745227096528,5.31957669,139.78,139.77,0.03]
[1745227096728,5.46173826,139.78,139.77,0.03]
[1745227102931,5.31957669,139.78,139.77,0.03]
[1745227106226,5.31957669,139.78,139.77,7.7741]
[1745227106913,3.65297669,139.78,139.77,33.7741]
[1745227107108,91.8473093,139.88,139.77,33.7741]
[1745227107313,18.64964886,139.87,139.77,33.7741]
[1745227107812,0.14216157,139.86,139.77,33.7741]
[1745227108014,18.64964886,139.87,139.77,33.7741]
[1745227108318,0.14216157,139.86,139.77,33.7741]
[1745227109529,0.14216157,139.84,139.77,33.7741]
[1745227110031,7.1495693,139.87,139.77,33.7741]
[1745227110217,18.79181043,139.86,139.77,33.7741]
[1745227112234,0.14216157,139.86,139.77,33.7741]
[1745227112531,0.14216157,139.86,139.8,26.0]
[1745227113928,0.14216157,139.87,139.8,26.0]
[1745227114137,80.8,139.88,139.8,26.0]
[1745227114336,18.79181043,139.87,139.8,26.0]
[1745227114634,25.94139644,139.87,139.8,26.0]
[1745227115138,25.94139644,139.87,139.79,26.0]
[1745227116230,25.94139644,139.87,139.77,33.7741]
[1745227117833,18.79181043,139.87,139.8,26.0]
[1745227118230,0.14216157,139.87,139.8,26.0]
[1745227118431,0.14216157,139.87,139.81,6.451]
[1745227119942,18.79181043,139.87,139.81,6.451]
[1745227120240,25.94146958,139.87,139.81,6.451]
[1745227121034,25.94146958,139.87,139.79,26.0]
[1745227122048,0.14216157,139.84,139.79,26.0]
[1745227123042,18.64964886,139.85,139.79,26.0]
[1745227123043,18.79181043,139.85,139.79,26.0]
[1745227125342,18.64964886,139.85,139.79,26.0]
[1745227125545,0.14216157,139.84,139.79,26.0]
[1745227125723,80.8,139.86,139.79,26.0]
[1745227125924,0.14216157,139.85,139.79,26.0]
[1745227126627,18.79181043,139.85,139.79,26.0]
[1745227129452,18.79181043,139.85,139.79,40.38]
[1745227129746,0.14216157,139.85,139.79,40.38]
[1745227129952,80.8,139.86,139.79,40.38]
[1745227130122,80.8,139.86,139.82,26.0]
[1745227130325,0.14216157,139.88,139.82,26.0]
[1745227130526,18.71264886,139.89,139.82,32.5283]
[1745227130749,0.14216157,139.88,139.82,32.5283]
[1745227131047,18.71264886,139.89,139.82,32.5283]
[1745227131545,0.14216157,139.88,139.82,32.5283]
[1745227131751,18.71264886,139.89,139.82,32.5283]
[1745227131948,0.14216157,139.88,139.82,32.5283]
[1745227133355,18.71264886,139.89,139.82,32.5283]
[1745227133530,0.14216157,139.88,139.82,32.5283]
[1745227136137,0.063,139.89,139.82,32.5283]
[1745227136339,0.063,139.89,139.83,1.0]
[1745227136550,0.063,139.89,139.87,26.0]
[1745227136754,0.063,139.89,139.85,26.0]
[1745227140547,0.063,139.89,139.84,14.38]
[1745227142057,0.20516157,139.89,139.84,14.38]
[1745227142264,18.79181043,139.87,139.8,14.38]
[1745227143366,25.94163401,139.87,139.8,14.38]
[1745227144958,18.79181043,139.85,139.77,0.03]
[1745227145140,18.79181043,139.85,139.79,26.0]
[1745227145346,25.9424602,139.85,139.77,0.03]
[1745227145842,25.9424602,139.85,139.79,26.0]
[1745227146765,25.94240165,139.85,139.79,26.0]
[1745227152356,20.36811043,139.83,139.77,0.03]
[1745227153354,27.51969582,139.83,139.77,0.03]
[1745227160155,18.79181043,139.81,139.77,0.03]
[1745227160379,0.14216157,139.79,139.77,0.03]
[1745227164886,18.79181043,139.79,139.77,0.03]
[1745227165479,18.64964886,139.82,139.77,0.03]
[1745227165668,82.4009,139.87,139.78,26.0]
[1745227166476,18.79181043,139.86,139.78,26.0]
[1745227166664,25.94201071,139.86,139.77,20.5121]
[1745227166991,18.64964886,139.86,139.77,20.5121]
[1745227167363,0.14216157,139.85,139.77,20.5121]
[1745227179095,0.14216157,139.85,139.8,26.0]
[1745227179295,80.8,139.87,139.8,26.0]
[1745227179600,0.14216157,139.86,139.8,26.0]
[1745227179789,80.8,139.87,139.8,26.0]
[1745227180701,0.14216157,139.86,139.8,26.0]
[1745227182692,80.8,139.87,139.81,7.8022]
[1745227182893,80.8,139.87,139.84,26.0]
[1745227183107,18.71264886,139.89,139.84,26.0]
[1745227183281,0.14216157,139.88,139.84,26.0]
[1745227183482,0.14216157,139.88,139.82,14.26]
[1745227185696,18.85481043,139.89,139.82,14.26]
[1745227186897,26.003292,139.89,139.82,14.26]
[1745227187208,0.063,139.89,139.82,14.26]
[1745227187586,18.71264886,139.89,139.82,14.26]
[1745227187791,0.14216157,139.88,139.82,14.26]
[1745227188115,18.71264886,139.89,139.82,14.26]
[1745227188290,0.14216157,139.88,139.82,14.26]
[1745227188489,18.71264886,139.89,139.82,14.26]
[1745227189318,0.14216157,139.88,139.82,14.26]
[1745227191211,0.14216157,139.88,139.8,1.0]
[1745227191509,0.14216157,139.86,139.78,14.26]
[1745227191684,0.14216157,139.86,139.79,26.0]
[1745227192109,0.14216157,139.86,139.78,14.26]
[1745227192609,0.14216157,139.86,139.81,26.0]
[1745227193412,0.14216157,139.87,139.81,26.0]
[1745227196223,7.29186855,139.87,139.79,26.0]
[1745227196595,0.14216157,139.87,139.81,26.0]
[1745227197916,7.29194138,139.87,139.78,15.8468]
[1745227198101,18.79181043,139.85,139.79,26.0]
[1745227199207,0.14216157,139.85,139.79,26.0]
[1745227199422,18.64964886,139.86,139.79,26.0]
[1745227199605,0.14216157,139.85,139.79,26.0]
[1745227200722,18.64964886,139.86,139.79,26.0]
[1745227200926,0.14216157,139.85,139.79,26.0]
[1745227204026,1.67536157,139.85,139.79,26.0]
[1745227204236,0.14216157,139.83,139.78,14.26]
[1745227204730,0.14216157,139.83,139.77,0.03]
[1745227205734,7.29373729,139.83,139.77,0.03]
[1745227206837,0.14216157,139.81,139.77,0.03]
[1745227207331,18.64964886,139.8,139.77,0.03]
[1745227209536,80.94216157,139.81,139.77,0.03]
[1745227209727,0.14216157,139.8,139.77,0.03]
[1745227209930,95.89246333,139.85,139.77,0.03]
[1745227210236,18.64964886,139.84,139.77,0.03]
[1745227210610,0.14216157,139.83,139.77,0.03]
[1745227212834,0.14216157,139.83,139.77,26.03]
[1745227213837,7.29370411,139.83,139.77,26.03]
[1745227216646,0.14216157,139.83,139.77,26.03]
[1745227216830,18.64964886,139.84,139.77,26.03]
[1745227217033,0.14216157,139.83,139.77,26.03]
[1745227218238,0.14216157,139.83,139.77,32.3565]
[1745227221035,0.14216157,139.83,139.77,6.3565]
[1745227221234,0.14216157,139.83,139.77,32.3565]
[1745227223342,18.64964886,139.84,139.77,32.3565]
[1745227223523,0.14216157,139.83,139.77,32.3565]
[1745227223720,82.3332,139.85,139.77,32.3565]
[1745227223925,18.64964886,139.87,139.8,26.0]
[1745227224421,0.14216157,139.86,139.8,26.0]
[1745227224625,18.64964886,139.87,139.8,26.0]
[1745227225245,0.14216157,139.86,139.8,26.0]
[1745227227330,82.3849,139.88,139.8,26.0]
[1745227227650,80.8,139.88,139.82,32.0345]
[1745227228946,0.063,139.89,139.82,32.0345]
[1745227232154,0.063,139.89,139.83,1.0]
[1745227232334,0.063,139.89,139.87,26.0]
[1745227236365,0.063,139.89,139.87,38.96932594]
[1745227237028,0.063,139.89,139.87,37.96932594]
[1745227237231,0.063,139.93,139.87,38.96932594]
[1745227239043,0.063,139.93,139.89,1.0]
[1745227239257,0.063,139.93,139.92,26.0]
[1745227246247,0.063,139.93,139.92,32.1609]
[1745227247448,0.063,139.97,139.93,1.0]
[1745227249248,0.063,139.97,139.92,6.1609]
[1745227249431,0.063,139.97,139.9,14.24]
[1745227249635,0.063,139.97,139.9,15.24]
[1745227249955,0.063,139.97,139.93,26.0]
[1745227254353,0.063,139.97,139.93,32.6252]
[1745227255755,0.063,139.97,139.93,26.0]
[1745227256956,0.063,139.97,139.93,27.0]
[1745227257446,0.063,139.99,139.96,26.0]
[1745227257646,0.063,139.99,139.97,14.22]
[1745227260554,32.053,140.0,139.99,26.0]
[1745227262158,32.053,140.0,139.97,14.22]
[1745227262159,32.053,140.0,139.97,40.22]
[1745227263061,32.053,140.0,139.97,14.22]
[1745227273658,18.79181043,139.98,139.93,14.22]
[1745227277378,1.6391,139.99,139.93,14.22]
[1745227278283,1.6391,139.99,139.96,26.0]
[1745227278471,32.053,140.0,139.96,26.0]
[1745227282177,32.053,140.0,139.93,40.22]
[1745227283275,0.14216157,139.99,139.93,40.22]
[1745227284064,0.14216157,139.99,139.93,14.22]
[1745227287477,32.053,140.0,139.93,20.8576]
[1745227292071,32.053,140.0,139.93,101.5576]
[1745227296815,32.053,140.0,139.96,26.0]
[1745227298075,32.053,140.0,139.91,0.03]
[1745227298076,154.75071043,139.99,139.91,0.03]
[1745227298398,18.79181043,139.97,139.91,0.03]
[1745227300005,25.93629312,139.97,139.91,0.03]
[1745227301585,18.79181043,139.97,139.91,0.03]
[1745227301781,18.64964886,139.97,139.91,0.03]
[1745227302189,0.14216157,139.96,139.91,0.03]
[1745227307325,0.14216157,139.94,139.91,0.03]
[1745227307604,1.65916157,139.94,139.91,0.03]
[1745227307980,8.80511636,139.94,139.91,0.03]
[1745227308408,0.14216157,139.92,139.91,0.03]
[1745227308598,18.64964886,139.93,139.91,0.03]
[1745227308795,0.14216157,139.92,139.91,0.03]
[1745227310601,1.517,139.94,139.91,0.03]
[1745227311195,80.8,139.96,139.91,0.03]
[1745227311504,0.14216157,139.96,139.91,0.03]
[1745227313606,1.5442,139.98,139.92,26.0]
[1745227313908,20.19384886,139.98,139.92,26.0]
[1745227314391,0.14216157,139.97,139.92,26.0]
[1745227315604,1.5442,139.98,139.94,26.0]
[1745227315811,32.053,140.0,139.94,26.0]
[1745227317699,32.053,140.0,139.95,14.16]
[1745227321112,32.053,140.0,139.95,22.2987]
[1745227327107,32.053,140.0,139.95,20.6847]
[1745227327824,32.053,140.0,139.95,14.16]
[1745227329705,0.14216157,139.99,139.92,6.4005]
[1745227329906,1.77726157,139.99,139.92,6.4005]
[1745227330410,1.77726157,139.99,139.93,26.0]
[1745227331497,1.6351,139.99,139.93,26.0]
[1745227332118,18.79181043,139.98,139.93,26.0]
[1745227332307,18.79181043,139.98,139.91,14.17]
[1745227332507,18.79181043,139.98,139.91,40.17]
[1745227335820,0.14216157,139.98,139.91,40.17]
[1745227338336,0.14216157,139.98,139.94,26.0]
[1745227338516,1.6351,139.99,139.94,26.0]
[1745227338828,1.6351,139.99,139.92,26.0]
[1745227339134,32.053,140.0,139.95,26.0]
[1745227339343,32.053,140.0,139.97,26.0]
[1745227339728,32.053,140.0,139.95,26.0]
[1745227341817,18.79181043,139.99,139.95,26.0]
[1745227343025,32.053,140.0,139.94,26.0]
[1745227345130,32.053,140.0,139.95,26.0]
[1745227345331,32.053,140.0,139.99,26.0]
[1745227348133,25.783,140.0,139.99,26.0]
[1745227350645,0.063,140.03,140.0,26.0]
[1745227359954,0.063,140.03,140.01,14.2]
[1745227364261,0.063,140.03,140.01,19.98376796]
[1745227367455,0.063,140.04,140.03,26.0]
[1745227373338,0.063,140.07,140.03,26.0]
[1745227385066,0.063,140.07,140.04,26.0]
[1745227387366,0.063,140.07,140.04,106.7]
[1745227387567,0.063,140.07,140.06,26.0]
[1745227387760,0.063,140.07,140.06,40.14]
[1745227388855,0.063,140.07,140.06,58.78964886]
[1745227389057,0.063,140.07,140.06,140.48964886]
[1745227390372,0.063,140.07,140.06,139.48964886]
[1745227390574,0.063,140.07,140.06,140.48964886]
[1745227391361,0.063,140.07,140.06,139.48964886]
[1745227391890,0.063,140.07,140.06,139.63181043]
[1745227393150,0.063,140.07,140.06,140.63181043]
[1745227394977,0.063,140.07,140.06,139.63181043]
[1745227395271,0.063,140.07,140.06,140.63181043]
[1745227397385,0.20516157,140.18,140.1,26.0]
[1745227397682,0.063,140.18,140.13,26.0]
[1745227398282,0.063,140.18,140.13,29.60058412]
[1745227402866,0.20516157,140.18,140.13,29.60058412]
[1745227406265,0.20516157,140.18,140.14,26.0]
[1745227408488,0.063,140.18,140.14,26.0]
[1745227414495,0.20516157,140.18,140.14,26.0]
[1745227417397,18.85481043,140.18,140.14,26.0]
[1745227418388,0.20516157,140.18,140.14,26.0]
[1745227418582,0.063,140.18,140.14,26.0]
[1745227423300,0.063,140.18,140.15,14.12]
[1745227427482,0.063,140.18,140.17,26.0]
[1745227428385,0.063,140.22,140.18,26.0]
[1745227428793,0.063,140.22,140.2,26.0]
[1745227428974,0.063,140.22,140.21,14.12]
[1745227431403,0.063,140.22,140.21,19.95598476]
[1745227433285,0.063,140.24,140.21,19.95598476]
[1745227433492,0.063,140.24,140.23,26.0]
[1745227437410,1.6185,140.27,140.24,26.0]
[1745227442719,0.14216157,140.28,140.24,26.0]
[1745227443509,0.20516157,140.29,140.24,26.0]
[1745227446225,0.063,140.29,140.24,26.0]
[1745227446418,0.20516157,140.29,140.24,26.0]
[1745227447424,0.063,140.29,140.24,26.0]
[1745227448407,0.063,140.29,140.24,32.3606]
[1745227448611,0.063,140.29,140.24,113.0606]
[1745227456507,0.063,140.29,140.28,26.0]
[1745227463032,0.17216157,140.34,140.28,26.0]
[1745227464733,0.03,140.34,140.28,26.0]
[1745227472421,18.82181043,140.34,140.28,26.0]
[1745227473436,25.94753488,140.34,140.28,26.0]
[1745227474319,25.94753488,140.34,140.26,26.0]
[1745227475539,18.64964886,140.3,140.21,93.13398476]
[1745227475723,0.14216157,140.29,140.23,14.1]
[1745227477631,0.14216157,140.31,140.23,14.1]
[1745227478835,7.2692658,140.31,140.23,14.1]
[1745227479821,0.14216157,140.29,140.23,14.1]
[1745227482047,7.27040261,140.29,140.23,14.1]
[1745227482744,0.14216157,140.27,140.23,14.1]
[1745227485845,18.64964886,140.29,140.23,14.1]
[1745227486034,0.14216157,140.28,140.23,14.1]
[1745227497354,0.14216157,140.28,140.23,40.1]
[1745227500748,0.14216157,140.28,140.23,14.1]
[1745227501059,0.14216157,140.28,140.23,40.1]
[1745227502060,18.64964886,140.29,140.23,40.1]
[1745227502557,1.5379,140.3,140.25,26.0]
[1745227502681,18.64964886,140.31,140.25,26.0]
[1745227506057,1.5979,140.34,140.26,26.0]
[1745227506364,18.64964886,140.33,140.26,26.0]
[1745227507057,18.64964886,140.33,140.26,27.6171]
[1745227507358,1.5979,140.34,140.3,26.0]
[1745227507562,0.03,140.34,140.3,40.12]
[1745227521066,0.17216157,140.34,140.3,14.12]
[1745227521386,18.79181043,140.32,140.3,14.12]
[1745227522266,18.64964886,140.32,140.3,14.12]
[1745227523964,0.14216157,140.31,140.3,14.12]
[1745227524181,0.14216157,140.31,140.27,26.0]
[1745227527487,0.14216157,140.31,140.26,14.1]
[1745227528493,18.64964886,140.3,140.23,14.1]
[1745227528672,18.79181043,140.27,140.23,40.1]
[1745227531093,7.12771679,140.3,140.23,40.1]
[1745227531094,0.14216157,140.3,140.23,40.1]
[1745227531795,18.64964886,140.31,140.23,40.1]
[1745227532484,82.3003,140.32,140.26,26.0]
[1745227532675,18.67964886,140.34,140.26,26.0]
[1745227532874,0.03,140.34,140.26,26.0]
[1745227533488,0.17216157,140.34,140.26,26.0]
[1745227534101,0.03,140.34,140.26,26.0]
[1745227534305,0.17216157,140.34,140.26,26.0]
[1745227538087,0.17216157,140.34,140.28,26.0]
[1745227538283,7.29772153,140.34,140.25,8.0357]
[1745227538493,7.29772153,140.34,140.26,26.0]
[1745227538894,0.17216157,140.34,140.26,26.0]
[1745227539098,7.29781775,140.34,140.26,26.0]
[1745227540103,0.17216157,140.34,140.28,26.0]
[1745227540293,0.17216157,140.34,140.28,40.1]
[1745227560125,0.03,140.34,140.28,40.1]
[1745227560423,0.03,140.34,140.28,41.6963]
[1745227560631,0.03,140.34,140.32,26.0]
[1745227561717,0.03,140.34,140.32,29.50024894]
[1745227562127,0.03,140.34,140.32,3.50024894]
[1745227562328,0.03,140.34,140.3,26.0]
[1745227564333,0.03,140.34,140.32,26.0]
[1745227565725,0.03,140.34,140.3,3.58204708]
[1745227565905,0.03,140.34,140.29,6.5783]
[1745227568819,0.03,140.34,140.29,10.07335583]
[1745227569311,18.67964886,140.34,140.29,3.49505583]
[1745227569512,18.67964886,140.34,140.28,14.1]
[1745227571435,0.14216157,140.33,140.28,14.1]
[1745227572513,0.14216157,140.33,140.28,17.71731644]
[1745227573241,0.17216157,140.34,140.28,17.71731644]
[1745227578742,0.17216157,140.34,140.28,43.71731644]
[1745227585053,0.03,140.34,140.28,43.71731644]
[1745227585561,18.82181043,140.34,140.28,3.61731644]
[1745227585732,18.82181043,140.34,140.25,20.1403]
[1745227585934,18.82181043,140.34,140.28,26.0]
[1745227587457,0.17216157,140.34,140.28,26.0]
[1745227587675,0.03,140.34,140.28,26.0]
[1745227587949,0.03,140.34,140.28,29.62326573]
[1745227590772,0.03,140.34,140.29,14.1]
[1745227592458,0.17216157,140.34,140.29,14.1]
[1745227594460,25.94772505,140.34,140.29,14.1]
[1745227600067,32.36172505,140.34,140.29,14.1]
[1745227601142,0.14216157,140.31,140.29,14.1]
[1745227602049,0.14216157,140.31,140.26,26.0]
[1745227604486,0.14216157,140.29,140.26,26.0]
[1745227604650,0.14216157,140.29,140.25,14.1]
[1745227605057,0.14216157,140.27,140.22,0.063]
[1745227605245,18.64964886,140.25,140.22,0.063]
[1745227605465,18.64964886,140.23,140.22,0.063]
[1745227606260,18.79181043,140.23,140.22,0.063]
[1745227606673,106.00581043,140.23,140.22,0.063]
[1745227606975,0.14216157,140.22,140.19,0.063]
[1745227607180,18.79181043,140.2,140.19,0.063]
[1745227607354,25.92447804,140.2,140.19,0.063]
[1745227607550,18.79181043,140.2,140.19,0.063]
[1745227610979,25.92447804,140.2,140.19,0.063]
[1745227613379,74.84387804,140.2,140.19,0.063]
[1745227614057,74.84387804,140.2,140.18,0.063]
[1745227614880,74.84387804,140.2,140.04,5.75230891]
[1745227614881,65.6394,140.18,140.04,5.75230891]
[1745227615075,0.14216157,140.16,140.02,6.1837]
[1745227615257,18.79181043,140.13,140.02,6.1837]
[1745227615578,18.79181043,140.13,140.05,26.0]
[1745227616081,18.79181043,140.13,140.02,6.1837]
[1745227616082,0.14216157,140.11,140.02,6.1837]
[1745227616455,0.14216157,140.11,140.03,26.0]
[1745227618059,18.64964886,140.16,140.03,26.0]
[1745227618382,0.14216157,140.15,140.03,26.0]
[1745227619157,0.14216157,140.13,140.03,26.0]
[1745227624389,7.27850819,140.13,140.03,26.0]
[1745227624560,7.27850819,140.13,140.02,6.1837]
[1745227625062,18.79181043,140.11,140.03,26.0]
[1745227625660,0.14216157,140.1,140.03,26.0]
[1745227626084,0.14216157,140.08,140.03,26.0]
[1745227639308,0.14216157,140.08,140.02,6.1837]
[1745227639603,0.14216157,140.08,140.02,32.1837]
[1745227641092,80.8,140.1,140.02,32.1837]
[1745227641291,0.14216157,140.09,140.02,32.1837]
[1745227642178,80.8,140.1,140.05,26.0]
[1745227642388,80.8,140.1,140.03,26.0]
[1745227643379,1.5304,140.14,140.05,26.0]
[1745227643586,18.64964886,140.13,140.06,14.44]
[1745227644097,0.14216157,140.12,140.06,14.44]
[1745227673118,18.64964886,140.13,140.06,14.44]
[1745227673327,0.14216157,140.12,140.06,14.44]
[1745227680636,0.14216157,140.12,140.09,26.0]
[1745227684917,1.5304,140.14,140.09,26.0]
[1745227685126,18.79181043,140.15,140.09,26.0]
[1745227687554,25.92708157,140.15,140.06,14.44]
[1745227687718,18.79181043,140.13,140.06,26.0]
[1745227688044,18.79181043,140.13,140.03,6.3409]
[1745227688250,18.79181043,140.13,140.06,26.0]
[1745227688720,25.92811471,140.13,140.06,26.0]
[1745227690333,18.64964886,140.11,140.06,26.0]
[1745227690538,0.14216157,140.1,140.06,26.0]
[1745227690836,0.14216157,140.1,140.04,26.0]
[1745227692042,0.14216157,140.08,140.04,26.0]
[1745227692424,0.14216157,140.08,140.02,14.223]
[1745227693625,0.14216157,140.05,140.02,14.223]
[1745227695950,0.14216157,140.05,140.02,0.063]
[1745227696946,0.14216157,140.03,140.02,0.063]
[1745227698341,25.93313728,140.03,140.02,0.063]
[1745227701334,51.93313728,140.03,140.02,0.063]
[1745227701658,73.30313728,140.03,140.02,0.063]
[1745227703258,0.14216157,140.01,139.99,0.03]
[1745227704356,53.52926757,140.0,139.99,0.03]
[1745227705644,74.89926757,140.0,139.99,0.03]
[1745227707255,53.52926757,140.0,139.99,0.03]
[1745227708538,155.69926757,140.0,139.99,0.03]
[1745227709560,134.32926757,140.0,139.99,0.03]
[1745227710768,155.69926757,140.0,139.99,0.03]
[1745227711641,74.89926757,140.0,139.99,0.03]
[1745227713959,46.38641043,140.0,139.99,0.03]
[1745227714158,18.79181043,140.0,139.99,0.03]
[1745227715049,25.93466757,140.0,139.99,0.03]
[1745227715747,47.30466757,140.0,139.99,0.03]
[1745227724247,73.30466757,140.0,139.99,0.03]
[1745227724766,73.30466757,140.0,139.99,1e-08]
[1745227724956,53.63586757,140.0,139.99,1e-08]
[1745227725157,40.16181043,139.99,139.98,0.03]
[1745227725365,47.80132666,139.99,139.98,1e-08]
[1745227726169,54.94469404,139.99,139.98,1e-08]
[1745227727074,54.94469404,139.99,139.97,1e-08]
[1745227727255,128.65554094,139.98,139.97,1e-08]
[1745227727574,40.16181043,139.97,139.96,1e-08]
[1745227727972,41.80821043,139.97,139.96,1e-08]
[1745227728183,50.94597586,139.97,139.96,1e-08]
[1745227728879,58.09036394,139.97,139.96,1e-08]
[1745227732187,84.09036394,139.97,139.96,1e-08]
[1745227732678,82.44396394,139.97,139.96,1e-08]
[1745227733062,73.30619851,139.97,139.96,1e-08]
[1745227733654,47.30619851,139.97,139.96,1e-08]
[1745227734174,25.79361538,139.98,139.96,1e-08]
[1745227734384,18.64964886,139.97,139.96,1e-08]
[1745227734878,18.79181043,139.97,139.96,1e-08]
[1745227736285,25.93619851,139.97,139.96,1e-08]
[1745227736885,18.79181043,139.97,139.96,1e-08]
[1745227737554,25.93619851,139.97,139.96,1e-08]
[1745227742472,18.79181043,139.97,139.96,1e-08]
[1745227743681,25.93619851,139.97,139.96,1e-08]
[1745227743892,18.79181043,139.97,139.96,1e-08]
[1745227744390,25.93619851,139.97,139.96,1e-08]
[1745227746371,47.30619851,139.97,139.96,1e-08]
[1745227746570,25.93619851,139.97,139.96,1e-08]
[1745227748182,47.30619851,139.97,139.96,1e-08]
[1745227749190,73.30619851,139.97,139.96,1e-08]
[1745227755882,82.44396394,139.97,139.96,1e-08]
[1745227756986,18.64964886,139.94,139.93,0.03]
[1745227757180,40.16181043,139.94,139.93,0.03]
[1745227757993,47.3077301,139.94,139.93,0.03]
[1745227760188,18.64964886,139.96,139.93,0.03]
[1745227760498,0.14216157,139.95,139.93,0.03]
[1745227761580,18.79181043,139.95,139.93,0.03]
[1745227761802,18.64964886,139.95,139.93,0.03]
[1745227762385,0.14216157,139.94,139.93,0.03]
[1745227762889,18.64964886,139.95,139.93,0.03]
[1745227763114,0.14216157,139.94,139.93,0.03]
[1745227765998,0.14216157,139.94,139.93,6.1082]
[1745227768713,0.14216157,139.95,139.93,6.1082]
[1745227769911,80.8,139.96,139.93,6.1082]
[1745227772090,18.79181043,139.97,139.93,6.1082]
[1745227772295,18.79181043,139.99,139.93,6.1082]
[1745227772702,25.93518556,139.99,139.93,6.1082]
[1745227773713,18.79181043,139.99,139.93,6.1082]
[1745227777505,25.93524135,139.99,139.93,6.1082]
[1745227779516,18.79181043,139.99,139.93,6.1082]
[1745227781719,25.93523552,139.99,139.93,6.1082]
[1745227783811,18.79181043,139.99,139.93,6.1082]
[1745227797931,80.8,140.0,139.93,6.1082]
[1745227798133,0.14216157,140.02,139.93,6.1082]
[1745227802308,0.14216157,140.0,139.93,6.1082]
[1745227802509,0.14216157,139.98,139.93,0.03]
[1745227802710,18.79181043,139.98,139.93,0.03]
[1745227804238,18.64964886,140.0,139.94,26.0]
[1745227804530,18.79181043,140.01,139.94,34.0196]
[1745227804729,18.71264886,140.03,139.94,34.0196]
[1745227805120,0.14216157,140.02,139.94,34.0196]
[1745227805321,18.71264886,140.03,139.94,34.0196]